fUSD/lending_fUSD_20250112
["ID","MTS","AMOUNT","RATE_DAILY","PERIOD"]
[348658256,1736701832575,-761.48,8.998e-05,2]
[348658258,1736701832584,-500.0,8.998e-05,2]
[348658260,1736701832593,-500.0,8.998e-05,2]
[348658261,1736701832602,-33.58809418,8.998e-05,2]
[348658264,1736701832614,-466.41190582,8.998e-05,2]
[348658266,1736701832623,-500.0,8.998e-05,2]
[348658268,1736701832632,-500.0,8.998e-05,2]
[348658270,1736701832643,-887.15,8.998e-05,2]
[348658272,1736701832652,-583.58,8.998e-05,2]
[348658273,1736701832661,-471.411506,8.998e-05,2]
[348658275,1736701832670,-500.0,8.998e-05,2]
[348658277,1736701832679,-515.72,8.998e-05,2]
[348658279,1736701832688,-500.0,8.998e-05,2]
[348658281,1736701832697,-500.0,8.998e-05,2]
[348658283,1736701832707,-596.96,8.998e-05,2]
[348658285,1736701832715,-500.0,8.998e-05,2]
[348658287,1736701832724,-500.0,8.998e-05,2]
[348658289,1736701832734,-500.0,8.998e-05,2]
[348658291,1736701832743,-501.97527061,8.998e-05,2]
[348658293,1736701832752,-672.87,8.998e-05,2]
[348658295,1736701832762,-500.0,8.998e-05,2]
[348658297,1736701832771,-500.0,8.998e-05,2]
[348658299,1736701832781,-684.54,8.998e-05,2]
[348658301,1736701832790,-500.0,8.998e-05,2]
[348658303,1736701832800,-640.12,8.998e-05,2]
[348658305,1736701832814,-500.0,8.998e-05,2]
[348658307,1736701832823,-500.0,8.998e-05,2]
[348658309,1736701832832,-671.66,8.998e-05,2]
[348658311,1736701832841,-150.0,8.998e-05,2]
[348658313,1736701832851,-500.50053246,8.998e-05,2]
[348658315,1736701832861,-500.0,8.998e-05,2]
[348658317,1736701832870,-500.0,8.998e-05,2]
[348658318,1736701832879,-500.0,8.998e-05,2]
[348658321,1736701832889,-500.0,8.998e-05,2]
[348658323,1736701832899,-517.81,8.998e-05,2]
[348658324,1736701832908,-500.0,8.998e-05,2]
[348658326,1736701832917,-529.29,8.998e-05,2]
[348658328,1736701832927,-500.0,8.998e-05,2]
[348658330,1736701832936,-500.0,8.998e-05,2]
[348658332,1736701832946,-753.72,8.998e-05,2]
[348658334,1736701832955,-500.0,8.998e-05,2]
[348658336,1736701832964,-1253.0,8.998e-05,2]
[348658338,1736701832974,-500.0,8.998e-05,2]
[348658340,1736701832983,-500.0,8.998e-05,2]
[348658342,1736701832992,-798.04,8.998e-05,2]
[348658344,1736701833002,-500.0,8.998e-05,2]
[348658346,1736701833013,-500.0,8.998e-05,2]
[348658347,1736701833023,-1128.2,8.998e-05,2]
[348658348,1736701833032,-500.0,8.998e-05,2]
[348658349,1736701833042,-500.0,8.998e-05,2]
[348658350,1736701833051,-500.0,8.998e-05,2]
[348658351,1736701833061,-500.0,8.998e-05,2]
[348658352,1736701833070,-892.96,8.998e-05,2]
[348658353,1736701833079,-500.0,8.998e-05,2]
[348658354,1736701833088,-576.09,8.998e-05,2]
[348658355,1736701833098,-500.0,8.998e-05,2]
[348658356,1736701833107,-556.80392448,8.998e-05,2]
[348658357,1736701833119,-984.09607552,8.998e-05,2]
[348658358,1736701833128,-87.43392214,8.998e-05,2]
[348658359,1736701833139,-479.3635473,8.998e-05,2]
[348658360,1736701833150,-413.21193929,8.998e-05,2]
[348658362,1736701833162,-343.77059127,8.998e-05,2]
[348658364,1736701833171,-500.0,8.998e-05,2]
[348658366,1736701833181,-500.0,8.998e-05,2]
[348658368,1736701833190,-500.0,8.998e-05,2]
[348658370,1736701833199,-500.0,8.998e-05,2]
[348658372,1736701833209,-500.0,8.998e-05,2]
[348658374,1736701833218,-500.0,8.998e-05,2]
[348658376,1736701833228,-792.99,8.998e-05,2]
[348658378,1736701833238,-710.66,8.998e-05,2]
[348658380,1736701833247,-501.41735268,8.998e-05,2]
[348658382,1736701833258,-500.0,8.998e-05,2]
[348658384,1736701833268,-621.53,8.998e-05,2]
[348658386,1736701833278,-504.35,8.998e-05,2]
[348658388,1736701833288,-731.48,8.998e-05,2]
[348658390,1736701833297,-500.0,8.998e-05,2]
[348658392,1736701833307,-1262.88,8.998e-05,2]
[348658394,1736701833317,-500.0,8.998e-05,2]
[348658396,1736701833326,-500.0,8.998e-05,2]
[348658398,1736701833336,-910.41,8.998e-05,2]
[348658400,1736701833346,-900.73,8.998e-05,2]
[348658402,1736701833355,-500.0,8.998e-05,2]
[348658404,1736701833365,-500.0,8.998e-05,2]
[348658406,1736701833375,-747.75,8.998e-05,2]
[348658408,1736701833385,-500.0,8.998e-05,2]
[348658410,1736701833395,-500.0,8.998e-05,2]
[348658412,1736701833404,-500.0,8.998e-05,2]
[348658414,1736701833414,-500.0,8.998e-05,2]
[348658417,1736701833423,-500.0,8.998e-05,2]
[348658419,1736701833433,-500.0,8.998e-05,2]
[348658421,1736701833443,-500.0,8.998e-05,2]
[348658422,1736701833452,-500.0,8.998e-05,2]
[348658424,1736701833462,-500.0,8.998e-05,2]
[348658426,1736701833472,-500.0,8.998e-05,2]
[348658429,1736701833483,-1383.98,8.998e-05,2]
[348658431,1736701833493,-500.0,8.998e-05,2]
[348658433,1736701833502,-561.28,8.998e-05,2]
[348658435,1736701833513,-3001.09,8.998e-05,2]
[348658437,1736701833523,-505.65,8.998e-05,2]
[348658439,1736701833533,-1127.8,8.998e-05,2]
[348658441,1736701833543,-942.98,8.998e-05,2]
[348658443,1736701833553,-787.15238549,8.998e-05,2]
[348658445,1736701833562,-1065.76,8.998e-05,2]
[348658447,1736701833571,-834.48,8.998e-05,2]
[348658449,1736701833580,-3543.21,8.998e-05,2]
[348658451,1736701833590,-1111.55,8.998e-05,2]
[348658453,1736701833599,-596.89,8.998e-05,2]
[348658455,1736701833608,-500.0,8.998e-05,2]
[348658457,1736701833617,-500.0,8.998e-05,2]
[348658459,1736701833626,-3852.08,8.998e-05,2]
[348658461,1736701833635,-500.0,8.998e-05,2]
[348658463,1736701833648,-1617.3,8.998e-05,2]
[348658465,1736701833658,-570.26,8.998e-05,2]
[348658467,1736701833667,-500.0,8.998e-05,2]
[348658469,1736701833677,-934.55,8.998e-05,2]
[348658471,1736701833686,-1736.32,8.998e-05,2]
[348658473,1736701833695,-594.46,8.998e-05,2]
[348658475,1736701833705,-1931.88,8.998e-05,2]
[348658477,1736701833714,-500.0,8.998e-05,2]
[348658479,1736701833724,-7062.02,8.998e-05,2]
[348658481,1736701833734,-1264.15,8.998e-05,2]
[348658483,1736701833744,-500.0,8.998e-05,2]
[348658485,1736701833754,-2461.46,8.998e-05,2]
[348658486,1736701833764,-500.0,8.998e-05,2]
[348658489,1736701833774,-500.0,8.998e-05,2]
[348658490,1736701833784,-749.66,8.998e-05,2]
[348658492,1736701833794,-734.05,8.998e-05,2]
[348658495,1736701833809,-525.84,8.998e-05,2]
[348658497,1736701833818,-1084.43,8.998e-05,2]
[348658498,1736701833828,-1609.3,8.998e-05,2]
[348658500,1736701833837,-2059.27,8.998e-05,2]
[348658503,1736701833848,-1787.86,8.998e-05,2]
[348658505,1736701833857,-500.0,8.998e-05,2]
[348658506,1736701833867,-1997.97,8.998e-05,2]
[348658507,1736701833876,-1016.934944,8.998e-05,2]
[348658508,1736701833886,-500.0,8.998e-05,2]
[348658509,1736701833895,-500.0,8.998e-05,2]
[348658535,1736701834153,-1133.24,8.998e-05,2]
[348658538,1736701834163,-159.431396,8.998e-05,2]
[348658540,1736701834172,-500.0,8.998e-05,2]
[348658542,1736701834182,-2872.31,8.998e-05,2]
[348658544,1736701834191,-157.421382,8.998e-05,2]
[348658546,1736701834202,-838.74,8.998e-05,2]
[348658548,1736701834211,-500.0,8.998e-05,2]
[348658550,1736701834220,-1212.43,8.998e-05,2]
[348658552,1736701834229,-3379.8,8.998e-05,2]
[348658553,1736701834239,-8274.81,8.998e-05,2]
[348658555,1736701834248,-941.30118,8.998e-05,2]
[348658557,1736701834258,-857.63,8.998e-05,2]
[348658559,1736701834268,-633.43,8.998e-05,2]
[348658561,1736701834277,-4185.07,8.998e-05,2]
[348658563,1736701834287,-2036.99,8.998e-05,2]
[348658565,1736701834297,-500.0,8.998e-05,2]
[348658567,1736701834306,-1694.65,8.998e-05,2]
[348658569,1736701834315,-978.89,8.998e-05,2]
[348658571,1736701834324,-500.0,8.998e-05,2]
[348658573,1736701834334,-1546.9,8.998e-05,2]
[348658575,1736701834344,-1024.54,8.998e-05,2]
[348658577,1736701834353,-1108.27492714,8.998e-05,2]
[348658579,1736701834363,-1788.6,8.998e-05,2]
[348658581,1736701834373,-1788.6,8.998e-05,2]
[348658583,1736701834382,-949.06,8.998e-05,2]
[348658585,1736701834391,-2628.69,8.998e-05,2]
[348658587,1736701834401,-821.75,8.998e-05,2]
[348658589,1736701834410,-1220.28,8.998e-05,2]
[348658591,1736701834419,-897.57,8.998e-05,2]
[348658593,1736701834428,-661.29,8.998e-05,2]
[348658595,1736701834438,-205.53426664,8.998e-05,2]
[348658597,1736701834448,-957.41,8.998e-05,2]
[348658599,1736701834457,-548.28,8.998e-05,2]
[348658601,1736701834467,-6041.07,8.998e-05,2]
[348658603,1736701834477,-2143.17,8.999e-05,2]
[348658605,1736701834486,-2594.55,8.999e-05,2]
[348658607,1736701834495,-500.0,8.999e-05,2]
[348658609,1736701834505,-1374.82,8.999e-05,2]
[348658611,1736701834516,-3589.47,8.999e-05,2]
[348658613,1736701834526,-1614.55,8.999e-05,2]
[348658615,1736701834536,-1037.11,8.999e-05,2]
[348658617,1736701834547,-1042.12,8.999e-05,2]
[348658619,1736701834556,-543.61,8.999e-05,2]
[348658621,1736701834566,-880.54,8.999e-05,2]
[348658623,1736701834575,-966.88,8.999e-05,2]
[348658625,1736701834585,-1313.81,8.999e-05,2]
[348658627,1736701834594,-1087.44,8.999e-05,2]
[348658629,1736701834603,-1554.24,8.999e-05,2]
[348658631,1736701834612,-2002.47,8.999e-05,2]
[348658633,1736701834621,-1809.02,8.999e-05,2]
[348658635,1736701834630,-5814.91,8.999e-05,2]
[348658637,1736701834641,-3512.12,8.999e-05,2]
[348658639,1736701834651,-500.0,9.038e-05,2]
[348658641,1736701834660,-2258.82,9.038e-05,2]
[348658643,1736701834670,-2680.59,9.038e-05,2]
[348658645,1736701834679,-1897.18,9.038e-05,2]
[348658647,1736701834688,-500.0,9.038e-05,2]
[348658649,1736701834697,-1169.19,9.038e-05,2]
[348658651,1736701834706,-2825.14,9.038e-05,2]
[348658653,1736701834716,-500.0,9.038e-05,2]
[348658654,1736701834725,-500.0,9.038e-05,2]
[348658656,1736701834735,-1083.8,9.038e-05,2]
[348658658,1736701834744,-500.0,9.038e-05,2]
[348658660,1736701834754,-500.0,9.038e-05,2]
[348658662,1736701834764,-1529.31,9.038e-05,2]
[348658664,1736701834774,-500.0,9.038e-05,2]
[348658666,1736701834783,-551.85,9.038e-05,2]
[348658668,1736701834792,-898.16,9.038e-05,2]
[348658670,1736701834804,-710.99,9.038e-05,2]
[348658672,1736701834815,-2610.95,9.038e-05,2]
[348658674,1736701834825,-1000.0,9.039e-05,2]
[348658676,1736701834834,-8274.81,9.061e-05,2]
[348658678,1736701834842,-5000.0,9.17e-05,2]
[348658680,1736701834854,-3895.5771,9.172e-05,2]
[348658682,1736701834863,-250.0,9.184e-05,2]
[348658684,1736701834872,-610.4192155,9.27e-05,2]
[348658686,1736701834883,-500.0,9.27e-05,2]
[348658688,1736701834892,-500.0,9.27e-05,2]
[348658690,1736701834902,-500.0,9.27e-05,2]
[348658692,1736701834911,-500.0,9.27e-05,2]
[348658694,1736701834920,-500.0,9.27e-05,2]
[348658696,1736701834929,-500.0,9.27e-05,2]
[348658698,1736701834939,-500.0,9.27e-05,2]
[348658700,1736701834948,-606.66,9.27e-05,2]
[348658702,1736701834957,-500.0,9.27e-05,2]
[348658704,1736701834966,-613.40311428,9.27e-05,2]
[348658706,1736701834976,-500.0,9.27e-05,2]
[348658708,1736701834985,-500.0,9.27e-05,2]
[348658710,1736701834994,-500.0,9.27e-05,2]
[348658712,1736701835003,-500.0,9.27e-05,2]
[348658714,1736701835013,-500.0,9.27e-05,2]
[348658715,1736701835022,-500.0,9.27e-05,2]
[348658717,1736701835031,-872.72,9.27e-05,2]
[348658720,1736701835041,-714.49,9.27e-05,2]
[348658721,1736701835051,-500.0,9.27e-05,2]
[348658723,1736701835063,-500.0,9.27e-05,2]
[348658726,1736701835073,-500.0,9.27e-05,2]
[348658728,1736701835083,-658.45,9.27e-05,2]
[348658730,1736701835092,-500.0,9.27e-05,2]
[348658732,1736701835101,-500.0,9.27e-05,2]
[348658734,1736701835111,-762.41,9.27e-05,2]
[348658736,1736701835121,-500.0,9.27e-05,2]
[348658738,1736701835129,-500.0,9.27e-05,2]
[348658740,1736701835138,-500.0,9.27e-05,2]
[348658741,1736701835147,-524.2,9.27e-05,2]
[348658743,1736701835156,-500.0,9.27e-05,2]
[348658746,1736701835166,-500.0,9.27e-05,2]
[348658747,1736701835177,-189.5656034,9.27e-05,2]
[348658750,1736701835187,-500.0,9.27e-05,2]
[348658751,1736701835197,-500.0,9.27e-05,2]
[348658753,1736701835207,-500.0,9.27e-05,2]
[348658756,1736701835219,-278.02886135,9.27e-05,2]
[348658758,1736701835228,-500.0,9.27e-05,2]
[348658760,1736701835238,-593.37,9.27e-05,2]
[348658762,1736701835248,-500.0,9.27e-05,2]
[348658764,1736701835257,-771.02,9.27e-05,2]
[348658766,1736701835267,-500.0,9.27e-05,2]
[348658767,1736701835276,-500.0,9.27e-05,2]
[348658770,1736701835286,-500.0,9.27e-05,2]
[348658772,1736701835295,-500.0,9.27e-05,2]
[348658774,1736701835304,-739.53,9.27e-05,2]
[348658775,1736701835313,-500.0,9.27e-05,2]
[348658778,1736701835323,-500.0,9.27e-05,2]
[348658780,1736701835333,-500.0,9.27e-05,2]
[348658782,1736701835342,-500.0,9.27e-05,2]
[348658784,1736701835351,-500.0,9.27e-05,2]
[348658785,1736701835360,-732.56,9.27e-05,2]
[348658787,1736701835369,-500.0,9.27e-05,2]
[348658790,1736701835379,-504.98,9.27e-05,2]
[348658792,1736701835388,-500.0,9.27e-05,2]
[348658794,1736701835398,-500.0,9.27e-05,2]
[348658795,1736701835407,-500.0,9.27e-05,2]
[348658797,1736701835416,-500.0,9.27e-05,2]
[348658799,1736701835426,-500.0,9.27e-05,2]
[348658801,1736701835435,-500.0,9.27e-05,2]
[348658803,1736701835444,-500.0,9.27e-05,2]
[348658806,1736701835453,-500.0,9.27e-05,2]
[348658808,1736701835463,-571.52,9.27e-05,2]
[348658810,1736701835472,-1137.56,9.27e-05,2]
[348658811,1736701835482,-815.76,9.27e-05,2]
[348658812,1736701835491,-500.0,9.27e-05,2]
[348658813,1736701835500,-500.0,9.27e-05,2]
[348658814,1736701835510,-500.0,9.27e-05,2]
[348658815,1736701835519,-856.9,9.27e-05,2]
[348658816,1736701835529,-500.0,9.27e-05,2]
[348658817,1736701835538,-500.0,9.27e-05,2]
[348658818,1736701835547,-500.0,9.27e-05,2]
[348658819,1736701835557,-500.0,9.27e-05,2]
[348658821,1736701835567,-596.28,9.27e-05,2]
[348658823,1736701835576,-500.0,9.27e-05,2]
[348658825,1736701835585,-500.0,9.27e-05,2]
[348658827,1736701835594,-500.0,9.27e-05,2]
[348658829,1736701835603,-500.0,9.27e-05,2]
[348658830,1736701835612,-500.0,9.27e-05,2]
[348658833,1736701835622,-500.0,9.27e-05,2]
[348658835,1736701835632,-705.43,9.27e-05,2]
[348658836,1736701835642,-500.0,9.27e-05,2]
[348658838,1736701835652,-500.0,9.27e-05,2]
[348658840,1736701835661,-500.0,9.27e-05,2]
[348658842,1736701835670,-869.65,9.27e-05,2]
[348658844,1736701835680,-500.0,9.27e-05,2]
[348658846,1736701835689,-526.0254184,9.27e-05,2]
[348658848,1736701835699,-500.0,9.27e-05,2]
[348658850,1736701835708,-500.0,9.27e-05,2]
[348658852,1736701835718,-577.44,9.27e-05,2]
[348658854,1736701835727,-500.0,9.27e-05,2]
[348658856,1736701835736,-506.59931369,9.27e-05,2]
[348658858,1736701835746,-500.0,9.27e-05,2]
[348658860,1736701835755,-248.80866775,9.27e-05,2]
[348658862,1736701835765,-660.97,9.27e-05,2]
[348658864,1736701835774,-500.0,9.27e-05,2]
[348658866,1736701835783,-500.0,9.27e-05,2]
[348658868,1736701835792,-500.0,9.27e-05,2]
[348658870,1736701835805,-500.0,9.27e-05,2]
[348658872,1736701835815,-500.0,9.27e-05,2]
[348658874,1736701835824,-162.64797709,9.27e-05,2]
[348658876,1736701835834,-500.0,9.27e-05,2]
[348658878,1736701835843,-922.29,9.27e-05,2]
[348658880,1736701835852,-500.0,9.27e-05,2]
[348658882,1736701835861,-500.0,9.27e-05,2]
[348658884,1736701835871,-500.0,9.27e-05,2]
[348658886,1736701835880,-500.0,9.27e-05,2]
[348658888,1736701835889,-500.0,9.27e-05,2]
[348658890,1736701835899,-597.54,9.27e-05,2]
[348658892,1736701835908,-1048.72,9.27e-05,2]
[348658894,1736701835917,-500.0,9.27e-05,2]
[348658896,1736701835926,-500.0,9.27e-05,2]
[348658898,1736701835935,-530.33050779,9.27e-05,2]
[348658900,1736701835944,-500.0,9.27e-05,2]
[348658902,1736701835953,-811.85,9.27e-05,2]
[348658904,1736701835963,-761.23,9.27e-05,2]
[348658906,1736701835973,-500.0,9.27e-05,2]
[348658908,1736701835982,-500.0,9.27e-05,2]
[348658910,1736701835991,-519.77,9.27e-05,2]
[348658912,1736701836000,-725.5,9.27e-05,2]
[348658914,1736701836010,-545.62,9.27e-05,2]
[348658916,1736701836019,-500.0,9.27e-05,2]
[348658918,1736701836028,-766.58,9.27e-05,2]
[348658920,1736701836037,-736.91,9.27e-05,2]
[348658922,1736701836046,-500.0,9.27e-05,2]
[348658924,1736701836058,-500.0,9.27e-05,2]
[348658926,1736701836068,-500.0,9.27e-05,2]
[348658928,1736701836077,-500.0,9.27e-05,2]
[348658930,1736701836087,-500.0,9.27e-05,2]
[348658932,1736701836096,-500.0,9.27e-05,2]
[348658934,1736701836104,-616.48,9.27e-05,2]
[348658936,1736701836114,-500.0,9.27e-05,2]
[348658938,1736701836123,-500.0,9.27e-05,2]
[348658940,1736701836132,-499.80439021,9.27e-05,2]
[348658942,1736701836141,-500.0,9.27e-05,2]
[348658944,1736701836150,-500.0,9.27e-05,2]
[348658946,1736701836159,-4553.28,9.27e-05,2]
[348658948,1736701836168,-500.0,9.27e-05,2]
[348658950,1736701836178,-720.3,9.27e-05,2]
[348658952,1736701836187,-515.99,9.27e-05,2]
[348658954,1736701836196,-582.41,9.27e-05,2]
[348658956,1736701836206,-500.0,9.27e-05,2]
[348658957,1736701836215,-2803.41,9.27e-05,2]
[348658960,1736701836224,-754.53,9.27e-05,2]
[348658962,1736701836234,-500.0,9.27e-05,2]
[348658963,1736701836244,-500.0,9.27e-05,2]
[348658966,1736701836255,-943.14,9.27e-05,2]
[348658968,1736701836265,-714.22,9.27e-05,2]
[348658969,1736701836274,-511.9536194,9.27e-05,2]
[348658972,1736701836283,-608.67,9.27e-05,2]
[348658974,1736701836292,-3300.79,9.27e-05,2]
[348658976,1736701836302,-500.0,9.27e-05,2]
[348658977,1736701836311,-897.74,9.27e-05,2]
[348658980,1736701836320,-500.0,9.27e-05,2]
[348658982,1736701836330,-624.49,9.27e-05,2]
[348658983,1736701836339,-631.56,9.27e-05,2]
[348658985,1736701836348,-738.65,9.27e-05,2]
[348658987,1736701836358,-841.45,9.27e-05,2]
[348658989,1736701836367,-500.0,9.27e-05,2]
[348658991,1736701836377,-500.0,9.27e-05,2]
[348658994,1736701836387,-618.08,9.27e-05,2]
[348658995,1736701836396,-811.53,9.27e-05,2]
[348658998,1736701836406,-500.0,9.27e-05,2]
[348659000,1736701836415,-500.0,9.27e-05,2]
[348659001,1736701836424,-847.24,9.27e-05,2]
[348659003,1736701836433,-500.0,9.27e-05,2]
[348659005,1736701836442,-500.0,9.27e-05,2]
[348659007,1736701836451,-500.0,9.27e-05,2]
[348659009,1736701836461,-500.0,9.27e-05,2]
[348659011,1736701836471,-1102.58,9.27e-05,2]
[348659013,1736701836480,-500.0,9.27e-05,2]
[348659015,1736701836489,-500.0,9.27e-05,2]
[348659017,1736701836498,-696.41,9.27e-05,2]
[348659019,1736701836507,-500.0,9.27e-05,2]
[348659021,1736701836518,-500.0,9.27e-05,2]
[348659023,1736701836528,-525.19,9.27e-05,2]
[348659025,1736701836537,-1238.08,9.27e-05,2]
[348659027,1736701836547,-3568.1,9.27e-05,2]
[348659029,1736701836556,-865.17,9.27e-05,2]
[348659031,1736701836565,-500.0,9.27e-05,2]
[348659033,1736701836574,-633.6,9.27e-05,2]
[348659035,1736701836583,-500.0,9.27e-05,2]
[348659037,1736701836592,-557.72,9.27e-05,2]
[348659039,1736701836601,-658.08,9.27e-05,2]
[348659041,1736701836610,-500.0,9.27e-05,2]
[348659043,1736701836619,-737.13,9.27e-05,2]
[348659045,1736701836628,-500.0,9.27e-05,2]
[348659047,1736701836639,-500.0,9.27e-05,2]
[348659049,1736701836650,-500.0,9.27e-05,2]
[348659051,1736701836659,-500.0,9.27e-05,2]
[348659053,1736701836668,-500.0,9.271e-05,2]
[348659055,1736701836677,-500.0,9.271e-05,2]
[348659057,1736701836687,-500.0,9.271e-05,2]
[348659059,1736701836696,-500.84867802,9.271e-05,2]
[348659061,1736701836705,-500.0,9.271e-05,2]
[348659063,1736701836714,-500.0,9.271e-05,2]
[348659065,1736701836723,-1117.49,9.271e-05,2]
[348659067,1736701836733,-647.73,9.271e-05,2]
[348659069,1736701836742,-500.0,9.271e-05,2]
[348659071,1736701836752,-962.95,9.271e-05,2]
[348659073,1736701836762,-1327.14,9.271e-05,2]
[348659075,1736701836772,-500.0,9.272e-05,2]
[348659077,1736701836782,-500.0,9.272e-05,2]
[348659080,1736701836791,-512.38,9.272e-05,2]
[348659082,1736701836801,-500.0,9.272e-05,2]
[348659083,1736701836814,-573.45,9.272e-05,2]
[348659085,1736701836823,-500.0,9.272e-05,2]
[348659088,1736701836833,-500.0,9.272e-05,2]
[348659089,1736701836842,-500.0,9.272e-05,2]
[348659091,1736701836855,-500.0,9.272e-05,2]
[348659094,1736701836865,-500.0,9.272e-05,2]
[348659095,1736701836874,-631.76,9.272e-05,2]
[348659098,1736701836884,-793.75,9.272e-05,2]
[348659100,1736701836894,-750.78,9.272e-05,2]
[348659101,1736701836903,-500.0,9.272e-05,2]
[348659103,1736701836913,-500.0,9.272e-05,2]
[348659105,1736701836923,-651.65,9.272e-05,2]
[348659107,1736701836932,-500.0,9.272e-05,2]
[348659109,1736701836942,-500.0,9.272e-05,2]
[348659112,1736701836952,-500.0,9.272e-05,2]
[348659114,1736701836963,-718.34,9.272e-05,2]
[348659115,1736701836973,-500.0,9.272e-05,2]
[348659117,1736701836982,-500.0,9.272e-05,2]
[348659119,1736701836991,-500.0,9.272e-05,2]
[348659121,1736701837000,-500.0,9.272e-05,2]
[348659123,1736701837009,-500.0,9.272e-05,2]
[348659125,1736701837019,-564.54,9.272e-05,2]
[348659127,1736701837029,-500.0,9.272e-05,2]
[348659129,1736701837039,-533.35,9.272e-05,2]
[348659131,1736701837048,-910.72,9.272e-05,2]
[348659133,1736701837057,-500.0,9.272e-05,2]
[348659135,1736701837066,-500.0,9.272e-05,2]
[348659137,1736701837075,-500.0,9.272e-05,2]
[348659139,1736701837084,-519.07,9.272e-05,2]
[348659141,1736701837094,-500.0,9.272e-05,2]
[348659143,1736701837103,-408.31234725,9.272e-05,2]
[348659145,1736701837112,-500.0,9.272e-05,2]
[348659147,1736701837122,-500.0,9.272e-05,2]
[348659149,1736701837131,-761.48,9.272e-05,2]
[348659151,1736701837140,-500.0,9.272e-05,2]
[348659153,1736701837150,-500.0,9.272e-05,2]
[348659155,1736701837159,-500.0,9.272e-05,2]
[348659157,1736701837168,-887.15,9.272e-05,2]
[348659160,1736701837177,-583.58,9.272e-05,2]
[348659162,1736701837187,-500.0,9.272e-05,2]
[348659163,1736701837196,-515.72,9.272e-05,2]
[348659166,1736701837205,-500.0,9.272e-05,2]
[348659167,1736701837214,-500.0,9.272e-05,2]
[348659170,1736701837224,-596.96,9.272e-05,2]
[348659172,1736701837233,-500.0,9.272e-05,2]
[348659174,1736701837244,-500.0,9.272e-05,2]
[348659176,1736701837254,-500.0,9.272e-05,2]
[348659178,1736701837263,-672.87,9.272e-05,2]
[348659180,1736701837272,-500.0,9.272e-05,2]
[348659182,1736701837282,-500.0,9.272e-05,2]
[348659184,1736701837291,-684.54,9.272e-05,2]
[348659186,1736701837300,-500.0,9.272e-05,2]
[348659188,1736701837310,-640.12,9.272e-05,2]
[348659190,1736701837319,-500.0,9.272e-05,2]
[348659192,1736701837328,-500.0,9.272e-05,2]
[348659194,1736701837337,-671.66,9.272e-05,2]
[348659196,1736701837346,-500.0,9.272e-05,2]
[348659198,1736701837355,-500.0,9.272e-05,2]
[348659200,1736701837366,-517.81,9.272e-05,2]
[348659202,1736701837375,-500.0,9.272e-05,2]
[348659204,1736701837384,-529.29,9.272e-05,2]
[348659206,1736701837393,-500.0,9.272e-05,2]
[348659208,1736701837403,-753.72,9.272e-05,2]
[348659210,1736701837412,-500.0,9.272e-05,2]
[348659212,1736701837422,-1253.0,9.272e-05,2]
[348659214,1736701837431,-500.0,9.272e-05,2]
[348659216,1736701837440,-798.04,9.272e-05,2]
[348659218,1736701837450,-500.0,9.272e-05,2]
[348659220,1736701837459,-500.0,9.272e-05,2]
[348659222,1736701837469,-1128.2,9.272e-05,2]
[348659224,1736701837478,-500.0,9.272e-05,2]
[348659226,1736701837487,-500.0,9.272e-05,2]
[348659228,1736701837497,-892.96,9.272e-05,2]
[348659230,1736701837506,-500.0,9.272e-05,2]
[348659232,1736701837517,-576.09,9.272e-05,2]
[348659234,1736701837526,-1540.9,9.272e-05,2]
[348659236,1736701837537,-1323.78,9.272e-05,2]
[348659238,1736701837546,-500.0,9.272e-05,2]
[348659240,1736701837555,-500.0,9.272e-05,2]
[348659243,1736701837565,-500.0,9.272e-05,2]
[348659245,1736701837574,-500.0,9.272e-05,2]
[348659247,1736701837586,-500.0,9.272e-05,2]
[348659249,1736701837595,-792.99,9.272e-05,2]